bitfinex/quotes_ETHUSD_20250620
["timestamp","ask_amount","ask_price","bid_price","bid_amount"]
[1750441062133,30.0,2373.2,2371.2,14.72649228]
[1750441062346,15.497,2373.1,2371.2,0.4685478]
[1750441062544,40.0,2372.9,2371.2,0.4685478]
[1750441062747,0.0564,2374.0,2371.7,14.25794448]
[1750441062934,49.7095437,2373.9,2371.7,14.25794448]
[1750441063243,30.0,2373.9,2372.5,4.21491881]
[1750441063545,40.0,2373.7,2372.5,14.25794448]
[1750441063737,30.0564,2376.3,2374.1,0.55]
[1750441063967,30.0,2376.8,2375.5,14.25794448]
[1750441064175,30.0,2376.8,2375.9,14.25794448]
[1750441064352,30.0,2377.9,2376.1,14.25794448]
[1750441064555,15.5534,2378.0,2374.8,1.1109]
[1750441064556,30.0,2377.0,2374.8,1.1109]
[1750441064763,30.0,2376.5,2375.4,0.55]
[1750441064967,4.20615694,2377.5,2376.1,14.25794448]
[1750441065279,15.504,2377.6,2375.6,0.0568]
[1750441065576,30.0,2377.9,2375.9,0.0568]
[1750441065746,4.20592193,2377.6,2376.1,4.20856276]
[1750441065945,15.504,2377.5,2376.1,0.0196059]
[1750441066178,34.20839996,2376.2,2376.1,0.0196059]
[1750441066357,10.0,2376.9,2376.1,0.0196059]
[1750441066569,30.0,2377.5,2376.2,5.34059996]
[1750441066756,45.504,2377.8,2376.2,1.1322]
[1750441066955,0.0564,2378.0,2376.2,1.1322]
[1750441066956,4.20822286,2376.3,2376.2,0.0196059]
[1750441067167,34.20787468,2376.5,2376.2,0.0196059]
[1750441067463,24.25794448,2377.1,2376.2,0.0196059]
[1750441067464,30.0,2377.5,2376.2,0.0196059]
[1750441067648,0.34259764,2377.4,2376.2,0.0196059]
[1750441067843,4.20750216,2376.8,2376.2,0.0196059]
[1750441068047,0.34259764,2376.7,2376.3,0.0568]
[1750441068280,4.20822286,2376.3,2376.2,0.0196059]
[1750441068482,44.55083025,2376.3,2376.2,0.0196059]
[1750441068641,34.5507849,2376.3,2376.2,0.0196059]
[1750441068847,44.5507849,2376.3,2376.2,0.0196059]
[1750441069084,10.0,2376.0,2374.7,1.1182]
[1750441069264,4.21283228,2373.7,2372.9,1.1182]
[1750441069447,4.21283228,2373.7,2371.9,0.0568]
[1750441069448,4.21531846,2372.3,2372.2,1.1182]
[1750441069675,4.21232321,2374.0,2371.7,1.0645]
[1750441069676,30.0,2373.2,2371.7,1.0645]
[1750441069876,4.21369026,2373.3,2371.8,0.0568]
[1750441070189,15.503,2373.5,2369.5,1.1182]
[1750441070190,4.21670744,2371.6,2370.7,1.0645]
[1750441070390,30.34141191,2371.5,2370.7,1.0645]
[1750441070597,4.21439231,2372.9,2371.2,4.21727395]
[1750441070777,10.0,2374.5,2372.7,1.1213]
[1750441070981,1.34759624,2374.4,2372.7,1.1213]
[1750441071195,10.0,2373.9,2372.7,1.0645]
[1750441071354,30.0,2373.5,2372.7,1.0645]
[1750441071572,15.505,2373.7,2372.0,1.0645]
[1750441071780,40.0,2373.4,2372.0,1.0645]
[1750441071997,30.0,2373.2,2371.1,1.0645]
[1750441072204,24.25794448,2372.3,2371.1,1.0645]
[1750441072367,0.34167914,2372.2,2370.2,1.1569]
[1750441072710,10.0,2371.9,2370.5,0.0568]
[1750441073000,30.0,2372.3,2370.5,0.0568]
[1750441073210,14.2158516,2372.0,2370.5,0.0568]
[1750441073506,15.505,2371.9,2370.6,0.35213979]
[1750441073703,3.0,2372.3,2370.8,14.25794448]
[1750441074013,30.0,2373.2,2371.5,0.0568]
[1750441074216,10.0,2372.8,2371.5,0.0568]
[1750441074521,25.513,2373.2,2371.6,0.55]
[1750441074823,4.21327861,2373.5,2372.6,4.21463437]
[1750441075006,34.21237133,2374.0,2372.6,4.21463437]
[1750441075007,1.1031,2374.8,2373.0,0.0583]
[1750441075223,0.06821104,2374.3,2373.6,0.55]
[1750441075520,14.31474448,2375.5,2373.1,0.55]
[1750441075521,30.0,2375.5,2374.2,4.82009022]
[1750441075684,4.2653949,2376.1,2374.2,4.82009022]
[1750441075685,30.0,2375.7,2374.3,0.55]
[1750441075878,15.16781153,2376.6,2375.1,1.0998]
[1750441075879,4.20995129,2375.4,2375.1,1.0998]
[1750441076113,30.0,2376.3,2375.1,1.0998]
[1750441076313,15.513,2376.4,2375.1,1.0998]
[1750441076314,4.20942001,2375.7,2375.1,1.0998]
[1750441076611,15.513,2376.3,2375.2,0.55]
[1750441076813,4.20709896,2377.0,2375.3,0.0583]
[1750441077013,0.0568,2377.4,2375.3,0.0583]
[1750441077014,30.0,2377.1,2375.4,0.55]
[1750441077214,29.76994448,2377.0,2375.3,0.0583]
[1750441077406,4.20869092,2376.1,2375.3,0.0583]
[1750441077600,4.20877036,2376.0,2375.1,1.0998]
[1750441077914,4.20922564,2375.8,2375.2,0.55]
[1750441078091,34.2075644,2376.7,2375.2,4.76000552]
[1750441078438,4.2069908,2377.0,2375.2,4.76000552]
[1750441078439,1.06,2377.5,2375.8,0.55]
[1750441078599,1.06,2377.5,2377.0,14.25794448]
[1750441078785,1.06,2377.5,2377.4,5.37067576]
[1750441079003,4.20216702,2379.8,2378.0,0.0583]
[1750441079200,15.512,2380.0,2378.1,0.55]
[1750441079446,14.25794448,2379.6,2378.0,0.0583]
[1750441079645,34.20185722,2379.9,2378.1,0.55]
[1750441079937,30.0,2379.7,2378.4,14.25794448]
[1750441080147,26.467,2380.4,2378.6,0.0583]
[1750441080301,30.0,2378.6,2377.6,1.0581]
[1750441080624,4.2087542,2376.0,2375.9,9.83658956]
[1750441080836,40.0,2375.8,2374.8,1.0581]
[1750441081147,19.508,2375.7,2373.4,14.31624448]
[1750441081439,1.0726,2375.1,2372.4,1.0581]
[1750441081634,0.55,2376.1,2373.5,0.0583]
[1750441081635,1.0726,2375.7,2373.5,0.0583]
[1750441081801,2.511,2374.6,2373.5,0.0583]
[1750441082000,30.0,2375.9,2374.6,4.21122398]
[1750441082234,30.0,2375.9,2373.6,1.0581]
[1750441082235,4.20831255,2376.3,2375.5,4.20962494]
[1750441082438,4.20563663,2377.8,2375.9,4.26723135]
[1750441082638,4.20524354,2378.0,2376.9,0.0583]
[1750441082937,4.20361421,2379.0,2377.3,10.0583]
[1750441083138,15.51,2379.3,2377.8,0.0583]
[1750441083343,4.20309347,2379.2,2377.8,0.0583]
[1750441083501,4.20574504,2377.7,2376.4,1.1212]
[1750441083702,30.0,2377.4,2376.4,1.1212]
[1750441083905,14.25794448,2378.0,2376.4,1.1795]
[1750441084104,30.0,2378.8,2376.4,1.1795]
[1750441084334,30.0,2378.2,2376.4,1.1795]
[1750441084535,30.0,2377.6,2376.4,1.1212]
[1750441084709,14.25794448,2377.3,2375.7,0.0583]
[1750441084899,4.20609884,2377.5,2375.9,0.0583]
[1750441085098,3.0,2378.1,2376.3,14.25794448]
[1750441085313,30.0,2380.1,2377.6,0.55]
[1750441085536,10.0,2380.4,2377.6,0.55]
[1750441085537,30.0,2379.9,2377.6,25.21194448]
[1750441085737,30.0,2379.9,2378.3,4.75468401]
[1750441085909,1.0632,2380.5,2378.4,4.20450723]
[1750441085910,30.0,2380.4,2378.4,4.20450723]
[1750441086109,4.20163417,2380.1,2379.1,4.2032583]
[1750441086310,0.0674601,2380.0,2379.3,4.20283334]
[1750441086559,0.0674601,2380.0,2378.9,1.0959]
[1750441086705,0.0674601,2380.0,2379.3,0.0583]
[1750441087325,0.0674601,2380.0,2379.9,4.26015722]
[1750441087527,0.0674601,2380.0,2379.9,0.0583]
[1750441087838,30.0,2381.6,2380.0,1.0959]
[1750441088001,3.0,2381.5,2380.0,1.0959]
[1750441088201,15.15151457,2382.4,2380.0,1.0959]
[1750441088202,30.0,2381.6,2380.9,4.20008652]
[1750441088442,0.28281574,2381.5,2380.2,4.20132761]
[1750441088624,0.28281574,2381.5,2380.4,24.25794448]
[1750441088825,0.28281574,2381.5,2381.4,4.19921054]
[1750441089006,0.28281574,2381.5,2381.3,1.1546]
[1750441089203,0.28281574,2381.5,2380.7,0.0583]
[1750441089642,10.0,2383.2,2381.4,0.0583]
[1750441089845,4.1968785,2382.8,2381.5,1.1092]
[1750441090003,4.19686253,2382.8,2381.5,1.1092]
[1750441090204,30.0,2382.8,2381.5,1.1092]
[1750441090409,30.0,2382.5,2380.4,1.1092]
[1750441090606,14.25794448,2382.6,2380.7,14.25794448]
[1750441090943,30.0,2382.4,2381.0,0.0583]
[1750441091107,14.25794448,2381.7,2380.4,1.1092]
[1750441091306,30.0,2381.0,2379.7,1.2887]
[1750441091507,10.0,2380.9,2379.7,1.2887]
[1750441091734,14.25794448,2380.7,2379.7,1.2887]
[1750441091947,1.3742,2379.4,2376.5,0.0583]
[1750441092273,10.0,2378.9,2376.6,0.35125078]
[1750441092549,4.16397743,2379.3,2378.0,14.25794448]
[1750441092754,0.0568,2380.1,2376.6,0.35125078]
[1750441092755,4.25731881,2380.7,2378.5,14.26252602]
[1750441092920,10.0,2379.6,2378.6,4.20398696]
[1750441093239,10.0,2379.3,2377.9,0.0583]
[1750441093407,4.20362352,2378.9,2378.0,0.35104399]
[1750441093610,14.20397696,2378.7,2378.0,0.35104399]
[1750441093923,4.16397743,2378.7,2378.0,0.35104399]
[1750441094156,30.0,2378.8,2378.0,0.35104399]
[1750441094315,10.0,2379.4,2378.0,0.35104399]
[1750441094654,4.20332779,2379.1,2378.4,4.20444484]
[1750441094808,4.20390854,2378.8,2378.1,4.20492968]
[1750441095009,54.60312861,2378.7,2378.0,0.35104399]
[1750441095208,14.20503763,2378.1,2378.0,0.35104399]
[1750441095442,44.55022176,2378.1,2378.0,0.35104399]
[1750441095822,60.03322176,2378.1,2378.0,0.35104399]
[1750441096029,44.20503763,2378.1,2378.0,0.35104399]
[1750441096350,0.34633424,2378.1,2376.8,4.20733759]
[1750441096567,0.09601805,2378.2,2378.1,4.20503763]
[1750441096910,0.09601805,2378.2,2378.1,1.2544]
[1750441097145,0.09601805,2378.2,2378.1,5.51773763]
[1750441097310,4.20166837,2380.1,2378.1,5.55977399]
[1750441097510,0.13531403,2380.1,2378.4,10.0]
[1750441099400,14.25794448,2381.3,2379.8,1.3145]
[1750441099540,1.43152445,2381.2,2380.8,4.20016129]
[1750441099740,0.0573,2381.4,2380.0,4.20156825]
[1750441099935,14.25794448,2380.9,2379.8,1.3145]
[1750441100195,0.0573,2381.4,2379.2,1.3145]
[1750441100337,30.0,2381.3,2379.3,10.0583]
[1750441100693,0.0573,2382.0,2381.6,4.19869226]
[1750441100993,1.42579445,2382.5,2381.8,4.19834396]
[1750441101282,14.1965672,2382.9,2382.1,4.19784958]
[1750441101620,0.9,2383.1,2381.6,1.3145]
[1750441101755,0.12861567,2382.1,2382.0,4.25645281]
[1750441101956,0.0573,2383.8,2382.3,4.19760541]
[1750441102155,14.25794448,2384.3,2383.5,4.19540301]
[1750441102355,4.1949545,2383.9,2383.2,4.1959192]
[1750441102581,34.19457223,2384.1,2383.4,4.19557322]
[1750441102872,4.19484322,2383.9,2383.2,4.1959874]
[1750441103083,4.19603893,2383.2,2381.6,10.936]
[1750441103237,4.19549332,2383.6,2382.1,4.19797657]
[1750441103440,0.0573,2383.7,2382.2,4.19780035]
[1750441103681,14.25794448,2384.0,2383.0,4.1963701]
[1750441103840,5.97147624,2383.9,2383.1,4.1961132]
[1750441104215,5.97147624,2383.9,2381.7,10.0]
[1750441104216,0.0573,2384.3,2383.2,0.04195889]
[1750441104518,0.0573,2384.9,2383.0,14.25794448]
[1750441104699,4.19339958,2384.7,2382.9,4.1965672]
[1750441104873,18.50829975,2384.9,2384.1,4.19441776]
[1750441105069,14.25794448,2384.5,2383.2,4.19592889]
[1750441105432,14.25794448,2384.0,2382.5,1.3728]
[1750441105603,10.0566,2384.2,2382.7,4.19691946]
[1750441105779,4.19492236,2383.9,2383.3,4.19584521]
[1750441105974,4.19492236,2383.9,2382.5,1.3728]
[1750441105975,1.42579445,2384.4,2383.4,4.23748765]
[1750441106179,4.19322375,2384.8,2383.4,0.04195289]
[1750441106486,4.19365654,2384.6,2383.0,4.19634326]
[1750441106689,14.31454448,2384.8,2382.8,0.0589]
[1750441106889,14.31454448,2384.8,2382.5,1.3145]
[1750441106890,14.25794448,2384.3,2382.9,0.35032213]
[1750441107075,4.19472815,2384.0,2383.4,4.195619]
[1750441107285,0.41947282,2383.9,2383.5,0.35023394]
[1750441107485,0.0566,2384.2,2383.5,0.35023394]
[1750441107690,30.0,2384.8,2383.5,0.35023394]
[1750441107903,0.0566,2384.9,2383.6,0.04194725]
[1750441108123,14.25794448,2385.2,2383.7,1.3748]
[1750441108289,30.0,2385.2,2383.7,1.72500455]
[1750441108620,30.0,2385.6,2384.0,4.19463087]
[1750441108819,30.0,2385.9,2383.8,10.0]
[1750441108974,30.0,2385.9,2384.3,14.25794448]
[1750441109199,0.0566,2386.6,2384.4,11.41671909]
[1750441109403,1.43145445,2386.6,2384.9,1.3748]
[1750441109651,1.43145445,2386.6,2385.8,5.49216617]
[1750441109652,4.19020528,2386.6,2385.8,5.49216617]
[1750441109830,14.25794448,2387.2,2385.8,5.49207516]
[1750441110017,4.18939255,2387.0,2386.4,4.19031386]
[1750441110218,5.52889982,2387.7,2385.8,1.3007]
[1750441110219,1.3407,2387.7,2385.8,1.3007]
[1750441110458,4.18869768,2387.4,2386.8,4.18960124]
[1750441110617,4.18869768,2387.4,2386.0,4.19111483]
[1750441110618,4.18935902,2387.0,2386.9,0.34973505]
[1750441110816,4.24595902,2387.0,2386.9,0.34973505]
[1750441111329,4.24595902,2387.0,2385.9,0.0419006]
[1750441111330,4.1893597,2387.0,2385.9,0.0419006]
[1750441111545,30.0,2387.8,2386.1,1.3469]
[1750441111757,14.25794448,2388.0,2386.5,0.0589]
[1750441111965,40.0,2387.0,2385.4,1.3469]
[1750441112123,1.371,2387.3,2385.5,4.19199329]
[1750441112316,1.371,2387.3,2385.4,1.3469]
[1750441112317,1.47068864,2387.8,2386.3,1.3469]
[1750441112516,0.4489419,2387.9,2386.3,1.3469]
[1750441112764,4.18813083,2387.7,2386.3,1.3469]
[1750441112919,15.45,2387.7,2386.5,4.19019063]
[1750441113118,15.45,2387.7,2386.8,4.18968248]
[1750441113119,4.18840629,2387.6,2386.8,4.18968248]
[1750441113453,15.45,2387.7,2386.4,4.19041233]
[1750441113619,1.545,2387.6,2386.3,1.3469]
[1750441113818,0.4489419,2387.9,2386.3,1.3469]
[1750441113819,15.45,2387.7,2387.0,4.18926043]
[1750441114019,4.63681806,2387.9,2386.3,5.53745607]
[1750441114214,0.4489419,2387.9,2386.3,1.3469]
[1750441114657,40.0,2387.8,2386.9,4.18941463]
[1750441114855,30.0,2387.7,2386.3,1.3469]
[1750441115083,4.1888539,2387.3,2386.3,1.3469]
[1750441115221,14.25794448,2386.9,2385.6,1.3734]
[1750441115557,40.0,2387.2,2385.0,1.3734]
[1750441115558,14.25794448,2386.6,2385.0,1.3734]
[1750441115744,4.19041233,2386.4,2385.0,1.3734]
[1750441115919,10.0,2386.5,2385.1,4.19269632]
[1750441116120,30.0,2386.3,2385.0,1.3734]
[1750441116349,40.0,2386.3,2385.0,1.3734]
[1750441116548,4.18973001,2386.8,2385.0,1.3734]
[1750441116549,10.0,2387.0,2385.3,4.19234477]
[1750441116766,4.18981924,2386.8,2385.5,4.19199329]
[1750441116974,14.25794448,2386.9,2385.8,4.1913294]
[1750441117131,49.60697743,2386.8,2385.1,4.19269632]
[1750441117340,14.25794448,2386.1,2385.0,1.3145]
[1750441117534,4.19148968,2385.8,2384.5,4.19375131]
[1750441117792,15.443,2386.0,2384.6,0.39199526]
[1750441118075,25.443,2386.1,2385.1,4.19267634]
[1750441118280,25.443,2386.1,2384.7,0.3500577]
[1750441118281,4.19187474,2385.6,2385.2,0.0419206]
[1750441118483,2.6787,2386.0,2385.0,0.0419201]
[1750441118637,4.19077199,2386.2,2385.7,4.19161497]
[1750441118980,5.92980098,2387.6,2385.5,4.19193368]
[1750441118981,1.2955,2387.5,2385.8,0.04191178]
[1750441119274,1.2955,2387.5,2385.6,25.16594448]
[1750441119275,4.18890451,2387.3,2385.9,4.19129049]
[1750441119571,4.18898369,2387.3,2386.7,4.18982577]
[1750441119796,0.4714301,2387.4,2385.6,10.908]
[1750441120074,4.19000699,2386.7,2386.1,4.19084742]
[1750441120280,4.19000699,2386.7,2385.9,4.19119129]
[1750441120281,4.19000699,2386.7,2385.6,10.908]
[1750441120482,0.4190007,2386.6,2385.5,0.0589]
[1750441120649,4.18883257,2387.3,2385.6,4.23372358]
[1750441120974,4.19086188,2386.2,2385.5,0.0589]
[1750441121160,4.19104747,2386.1,2385.4,5.5717044]
[1750441121495,4.19104747,2386.1,2384.9,0.0589]
[1750441121496,41.2955,2386.3,2384.9,0.0589]
[1750441121787,4.19124147,2386.0,2385.4,4.19207273]
[1750441121969,0.4327749,2386.1,2384.9,0.0589]
[1750441122141,4.19129869,2385.9,2384.9,0.0589]
[1750441122338,4.19196932,2385.6,2384.9,0.0589]
[1750441122647,14.69071938,2385.8,2384.7,1.3796]
[1750441122836,30.0,2385.7,2384.1,1.3047]
[1750441123036,14.25794448,2385.4,2384.2,4.19418944]
[1750441123269,4.19278073,2385.1,2384.1,1.3047]
[1750441123455,0.1193682,2385.1,2384.8,4.19310453]
[1750441123651,0.1193682,2385.1,2384.4,0.0589]
[1750441123860,0.1193682,2385.1,2384.6,4.1935246]
[1750441124090,0.1193682,2385.1,2385.0,4.19287211]
[1750441124777,0.1193682,2385.1,2385.0,4.23479245]
[1750441124966,0.1193682,2385.1,2385.0,4.19287211]
[1750441125167,0.1193682,2385.1,2384.6,0.0589]
[1750441125402,0.1193682,2385.1,2385.0,4.19287211]
[1750441125702,0.1193682,2385.1,2385.0,14.25177211]
[1750441125901,4.1896685,2386.9,2385.5,0.0589]
[1750441126088,4.19015097,2386.6,2385.9,4.19126522]
[1750441126290,4.18998708,2386.7,2385.7,4.19147896]
[1750441126466,10.0,2387.0,2385.5,0.0589]
[1750441126467,4.19074004,2386.3,2385.5,0.0589]
[1750441126663,4.19123106,2386.0,2385.5,0.0589]
[1750441126998,25.858074,2386.3,2385.1,1.3356]
[1750441127183,25.858074,2386.3,2385.3,4.1922422]
[1750441127184,0.35339546,2386.2,2385.3,4.1922422]
[1750441127367,4.19174954,2385.7,2385.2,4.19249728]
[1750441127566,4.19174954,2385.7,2385.1,1.3356]
[1750441127567,40.0,2386.1,2385.1,1.3356]
[1750441127768,4.19225196,2385.4,2384.3,1.3945]
[1750441127994,4.19300901,2385.0,2384.3,5.58859872]
[1750441128198,4.19297162,2385.0,2384.3,1.3945]
[1750441128368,10.0,2385.6,2384.4,0.04193022]
[1750441128567,4.1927806,2385.1,2384.6,4.19348852]
[1750441128762,10.0,2385.6,2384.3,1.3356]
[1750441128763,15.437,2385.4,2384.3,1.3356]
[1750441129002,30.0,2384.7,2383.2,1.2968]
[1750441129173,1.392,2385.1,2383.4,0.0589]
[1750441129368,10.0,2385.4,2384.1,4.19445493]
[1750441129573,4.19248294,2385.3,2384.7,4.1933016]
[1750441129887,4.19132906,2385.9,2384.8,0.04192985]
[1750441130104,1.85058735,2385.9,2384.7,4.19339958]
[1750441130304,4.19216902,2385.4,2384.3,1.2968]
[1750441130486,14.25794448,2385.5,2384.3,1.2968]
[1750441130669,17.28758735,2385.9,2384.3,1.2968]
[1750441130670,19.6302199,2385.4,2384.3,1.2968]
[1750441130980,10.0,2385.3,2383.7,5.49190845]
[1750441131182,4.19342052,2384.7,2384.2,4.19418353]
[1750441131369,4.19341932,2384.7,2383.7,1.2968]
[1750441131569,15.438,2385.0,2383.7,1.2968]
[1750441131905,10.0,2385.3,2383.9,4.19480682]
[1750441132082,4.19269632,2385.1,2384.4,4.19388709]
[1750441132279,4.19252054,2385.2,2383.8,4.19496608]
[1750441132494,4.19319314,2384.9,2384.3,4.19400318]
[1750441132695,4.193512,2384.7,2384.1,4.19431765]
[1750441133005,4.19331993,2384.8,2384.3,4.19399201]
[1750441133209,4.19313069,2384.9,2384.4,4.19391233]
[1750441133372,4.19313069,2384.9,2384.2,4.19424132]
[1750441133574,1.85058735,2385.9,2384.3,4.19404807]
[1750441133892,0.419074,2386.3,2384.6,1.2831]
[1750441134088,4.19172715,2385.7,2384.7,0.04191832]
[1750441134300,18.50495727,2386.4,2384.6,1.2831]
[1750441134301,10.0,2386.3,2384.6,1.2831]
[1750441134504,30.0,2385.9,2384.6,1.2831]
[1750441134707,15.79539524,2385.8,2384.9,4.19293927]
[1750441134905,4.19213078,2385.5,2384.6,1.2831]
[1750441135104,0.35639707,2385.4,2384.6,1.2831]
[1750441135304,4.19249356,2385.3,2384.1,4.19445493]
[1750441135533,4.19249356,2385.3,2384.8,4.19320604]
[1750441135704,0.5705848,2385.2,2384.0,1.3404]
[1750441135907,10.0,2384.8,2384.0,4.19455323]
[1750441136105,4.19357763,2384.6,2384.1,4.19435956]
[1750441136304,0.35654522,2384.5,2383.4,1.3404]
[1750441136620,0.35652745,2384.4,2383.9,4.19472977]
[1750441136827,0.35652745,2384.4,2383.4,1.3404]
[1750441136828,0.45486267,2385.5,2384.7,4.19338705]
[1750441137127,4.1935346,2384.7,2384.2,4.1941797]
[1750441137297,4.19429759,2384.2,2383.6,0.0573]
[1750441137496,4.19434316,2384.2,2383.7,4.19506903]
[1750441137725,4.19434316,2384.2,2383.3,4.19568872]
[1750441137726,4.19399685,2384.4,2383.3,4.1957516]
[1750441137886,4.19399685,2384.4,2382.9,1.2831]
[1750441137887,15.79663807,2384.3,2382.9,1.2831]
[1750441138093,15.79663807,2384.3,2382.2,1.2831]
[1750441138094,24.25794448,2383.6,2382.2,1.2831]
[1750441138329,4.19691946,2382.7,2381.7,4.19859065]
[1750441138495,4.55355753,2382.7,2382.2,4.19779609]
[1750441138692,29.99355753,2382.7,2381.6,1.2831]
[1750441138899,33.68276631,2382.7,2381.8,4.1984298]
[1750441139224,14.76703401,2382.7,2381.8,4.1984298]
[1750441139442,14.76703401,2382.7,2381.0,15.10788614]
[1750441139443,3.8509,2382.5,2379.5,1.5014584]
[1750441139651,2.511,2381.9,2379.8,14.25794448]
[1750441139814,15.80065489,2381.8,2380.6,1.3887]
[1750441140004,4.19986816,2381.1,2380.6,1.3314]
[1750441140344,4.19986816,2381.1,2380.0,1.3314]
[1750441140345,46.1530096,2381.0,2380.0,1.3314]
[1750441140644,30.0,2381.5,2380.1,0.04201224]
[1750441140871,10.0,2381.6,2378.8,1.3314]
[1750441140872,10.0,2380.4,2378.8,1.3314]
[1750441141022,10.0,2380.4,2377.3,0.12667724]
[1750441141023,11.2613,2379.5,2378.1,1.3314]
[1750441141211,0.35223601,2379.4,2378.1,1.3314]
[1750441141532,15.51924448,2379.5,2378.2,0.04203712]
[1750441141717,4.20327014,2379.1,2378.1,1.3314]
[1750441141919,14.25794448,2378.8,2377.6,1.3214]
[1750441142119,15.445,2378.7,2377.6,1.3214]
[1750441142330,54.20434827,2378.5,2377.0,1.3787]
[1750441142530,29.70294448,2378.7,2376.6,4.20757842]
[1750441142531,1.40630026,2379.5,2379.1,4.2031198]
[1750441142825,10.0,2380.4,2379.1,4.2031198]
[1750441142826,0.52,2381.6,2381.5,4.19903422]
[1750441143053,1.50332414,2382.3,2381.5,4.19903422]
[1750441143054,1.50332414,2382.3,2382.2,4.25510035]
[1750441143268,1.3781,2383.9,2382.2,4.25510035]
[1750441143563,1.3781,2383.9,2382.4,1.3727]
[1750441143775,1.3781,2383.9,2382.5,0.04196181]
[1750441143776,14.25794448,2383.5,2382.5,0.04196181]
[1750441144066,14.25794448,2383.5,2381.4,0.0573]
[1750441144067,30.0,2382.5,2381.7,4.19867315]
[1750441144225,1.42579445,2383.4,2381.7,14.25794448]
[1750441144423,0.0567,2383.7,2381.4,1.43]
[1750441144654,0.0567,2383.7,2381.9,10.0]
[1750441144810,29.71294448,2383.6,2382.0,0.04196945]
[1750441145119,10.919,2384.1,2382.3,0.0573]
[1750441145324,0.7015487,2384.0,2383.4,4.19555407]
[1750441145552,1.274,2384.5,2383.7,4.19499853]
[1750441145553,15.53194448,2384.5,2383.7,4.19499853]
[1750441145736,30.0,2384.3,2383.1,1.3536]
[1750441146042,30.0,2384.0,2383.2,4.19589982]
[1750441146242,11.62167205,2383.9,2383.2,4.19590848]
[1750441146419,11.62167205,2383.9,2382.5,0.54]
[1750441146420,10.92,2383.9,2382.6,4.1970956]
[1750441146627,30.0,2384.1,2384.0,4.19463087]
[1750441146855,30.0,2384.1,2382.6,4.1970956]
[1750441146856,4.19474036,2384.0,2382.6,4.1970956]
[1750441147050,30.0,2383.7,2382.5,0.54]
[1750441147252,14.31464448,2383.8,2382.5,0.54]
[1750441147550,10.0,2383.4,2382.5,0.54]
[1750441147757,15.456,2383.5,2382.5,0.54]
[1750441148093,15.456,2383.4,2382.6,4.1970956]
[1750441148378,10.92,2383.8,2382.5,0.54]
[1750441148673,10.0,2383.0,2382.5,0.54]
[1750441148855,10.0,2383.0,2380.6,4.20059069]
[1750441148856,4.19847143,2381.9,2380.7,0.0573]
[1750441149026,4.19847143,2381.9,2380.6,1.3625]
[1750441149027,14.25794448,2381.7,2380.6,1.3625]
[1750441149230,14.25794448,2381.7,2379.8,5.56443687]
[1750441149231,30.0,2381.6,2379.8,5.56443687]
[1750441149431,15.455,2381.5,2380.1,4.20138399]
[1750441149683,15.455,2381.5,2379.8,1.3625]
[1750441149684,64.25794448,2381.3,2379.8,1.3625]
[1750441149970,4.19997395,2381.0,2379.9,4.24386757]
[1750441150174,1.3704,2381.3,2380.5,4.20062246]
[1750441150379,0.41984714,2381.9,2379.9,0.43011676]
[1750441150380,1.79024714,2381.9,2380.2,14.25794448]
[1750441150677,30.0,2382.4,2380.6,0.0573]
[1750441150977,4.19932526,2381.4,2380.8,4.2001198]
[1750441151148,4.19631776,2383.1,2380.6,0.0573]
[1750441151355,4.19799802,2382.1,2380.6,4.25780112]
[1750441151597,30.0,2382.4,2380.6,0.90317126]
[1750441151882,1.2785,2382.6,2380.7,0.04198951]
[1750441152040,1.2785,2382.6,2381.0,0.0573]
[1750441152241,14.25794448,2382.2,2380.3,1.3813]
[1750441152451,3.69863397,2381.8,2381.2,4.19956205]
[1750441152687,14.19766048,2382.3,2380.4,4.25827462]
[1750441152688,1.2785,2382.6,2381.3,0.04199164]
[1750441152843,10.0,2381.8,2380.5,4.20079815]
[1750441153042,10.0,2381.6,2380.5,4.20079815]
[1750441153375,14.25794448,2383.0,2381.5,0.0573]
[1750441153577,14.25794448,2382.2,2380.9,0.0573]
[1750441153873,14.25794448,2381.4,2380.0,1.2678]
[1750441154182,2.12602092,2382.1,2380.5,4.20069815]
[1750441154183,1.3517,2381.2,2380.5,4.20069815]
[1750441154421,1.3517,2381.2,2379.9,0.0573]
[1750441154422,15.459,2381.1,2379.9,0.0573]
[1750441154740,15.461,2381.0,2380.2,4.20116638]
[1750441155083,10.0,2380.9,2379.3,1.3251]
[1750441155298,14.25794448,2381.1,2379.8,4.20188787]
[1750441155299,4.1997497,2381.1,2379.8,4.20188787]
[1750441155441,30.0,2381.6,2379.8,4.20187653]
[1750441155442,4.20011759,2380.9,2379.8,4.20187653]
[1750441155641,14.25794448,2381.2,2379.5,0.0573]
[1750441155861,14.25794448,2381.2,2379.3,1.2678]
[1750441155862,10.0,2380.7,2379.3,1.2678]
[1750441156070,10.0,2380.9,2380.4,4.20085987]
[1750441156291,10.923,2381.1,2380.9,4.1999495]
[1750441156451,10.923,2381.1,2379.5,0.0573]
[1750441156654,10.923,2381.1,2379.9,4.20185722]
[1750441156859,15.461,2381.0,2380.6,4.2005135]
[1750441157066,4.19929826,2381.4,2380.0,0.35074899]
[1750441157067,4.19900811,2381.6,2381.0,4.19989977]
[1750441157268,4.19921054,2381.4,2380.1,0.0573]
[1750441157449,14.25794448,2381.5,2380.1,0.45003834]
[1750441157777,1.2616,2382.8,2380.7,1.2823]
[1750441158097,40.0,2383.2,2381.8,4.19839664]
[1750441158291,30.0,2383.2,2382.1,4.19796933]
[1750441158490,1.62737129,2383.1,2381.8,1.3963]
[1750441158689,4.19648735,2383.0,2381.8,1.3963]
[1750441158992,1.62737129,2383.1,2381.8,1.3963]
[1750441159175,15.463,2383.1,2381.8,1.3963]
[1750441159365,15.463,2383.2,2382.0,0.0573]
[1750441159565,14.25794448,2382.8,2381.8,1.3963]
[1750441159765,4.19815329,2382.0,2381.2,1.3764]
[1750441159966,4.19850336,2381.9,2381.2,1.3764]
[1750441160165,4.19740335,2382.5,2381.2,1.3764]
[1750441160466,1.84553478,2382.4,2381.2,1.3764]